Workbook

Sheet Calculations
A1: ATTACHMENT 2
A2: Summary of Energy Efficiency Measures in Loan Request
A3: For each application, list the project measures for which you are requesting a loan and identify the estimated savings, project cost and payback for each project measure. Columns, except for Measure Payback, should total at the end of the table. Insert more rows as needed.
A4: <-----------------------------------------------Applicant to enter data in these columns-------------------------------------------------> | I4: <--Auto filled columns--> | K4: <--------------CEC Staff's Review----------->
A5: Project Measure / Location | B5: Measure Installation Cost ($)*, ** | C5: Peak Demand Savings (kW) | D5: Annual Electric Savings (kWh) | E5: Annual Natural Gas Savings (therms) | F5: Annual Other Energy Savings (specify units) | G5: Measure Annual Cost Savings ($) | H5: EUL (years)*** (EUL Considered for 1% Loans will be lesser of actual EUL or 17 Years) | I5: Measure Cost Savings over EUL ($) | J5: Measure Payback (years) | K5: Measure Revised EUL (if applicable; max. 17 years for 1% Loans) | L5: Measure Revised Cost Savings ($) | M5: Eligible Loan Amount (Lesser of measure cost or measure cost savings over its EUL)
A6: Measure 1 (Example) | B6: 76985 | C6: 14.7 | D6: 37733 | E6: 0 | F6: 0 | G6: 6246 | H6: 17 | I6: =G6*H6 -> 106182 | J6: =B6/G6 -> 12.32548831 | K6: =MIN(H6,17) -> 17 | L6: =G6*K6 -> 106182 | M6: =MIN(B6,I6,L6) -> 76985
A7: Measure 2 (Example) | B7: 49904 | C7: 7.5 | D7: 26955 | E7: 0 | F7: 0 | G7: 4612 | H7: 15 | I7: 69180 | J7: =B7/G7 -> 10.82046834 | K7: 15 | L7: =G7*K7 -> 69180 | M7: =MIN(B7,I7,L7) -> 49904
A8: Measure 3 (Example) | B8: 24463 | C8: 4.5 | D8: 8023 | E8: 0 | F8: 0 | G8: 1827 | H8: 5 | I8: 9135 | J8: =B8/G8 -> 13.38970991 | K8: =MIN(H8,17) -> 5 | L8: 9135 | M8: 9135
A9: Measure 4 (Example) | B9: 24830 | C9: 4.8 | D9: 13585 | E9: 0 | F9: 0 | G9: 3016 | H9: 7 | I9: 21112 | J9: =B9/G9 -> 8.232758621 | K9: =MIN(H9,17) -> 7 | L9: 21112 | M9: 21112
A10: Measure 5 (Example) | B10: 44871 | C10: 0.8 | D10: 11394 | E10: 0 | F10: 0 | G10: 2640 | H10: 17 | I10: 44880 | J10: =B10/G10 -> 16.99659091 | K10: 15 | L10: 39600 | M10: 39600
M11: 0
M12: 0
M13: 0
M14: 0
B15: =SUM(B6:B14) -> 221053 | C15: =SUM(C6:C14) -> 32.3 | D15: =SUM(D6:D14) -> 97690 | E15: =SUM(E6:E6) -> 0 | F15: =SUM(F6:F6) -> 0 | G15: =SUM(G6:G12) -> 18341 | I15: =SUM(I6:I14) -> 250489 | J15: =B15/G15 -> 12.05239627 | M15: =SUM(M6:M14) -> 196736
A16: * Measure Installation Cost shall include all labor, engineering, construction, materials, equipment, inspection, demolition (if applicable), | K16: ** Loan Amount: | M16: =MIN(B15,M15) -> 196736
A17: and removal (if applicable) less equipment salvage value (if applicable). | K17: Payback Period (years): | M17: =M16/G15 -> 10.72656889
A18: ** Loan amount will be lesser of $3 million; project cost; or total energy cost savings calculated using EUL of individual measures (as calculated in column M or titled "Eligible Loan Amount (Lesser of measure cost or measure cost savings over its EUL)")).
A19: *** If EUL of a measure is less than 17 years, borrower can use EUL up to 17 years provided its operational warranty certificate is provided by the manufacturer / supplier.
